bitfinex-derivatives/quotes_ETHF0:USTF0_20240922
["timestamp","ask_amount","ask_price","bid_price","bid_amount"]
[1727046525395,2.6,2582.2,2581.6,0.4518]
[1727046525702,0.38733,2581.9,2581.6,0.4518]
[1727046525995,0.38733,2581.9,2581.3,3.2078]
[1727046525996,2.6,2581.9,2581.3,3.2078]
[1727046526185,0.38738,2581.5,2581.3,3.2078]
[1727046526793,0.38737,2581.6,2581.3,3.2078]
[1727046526999,0.38737,2581.6,2581.2,0.38742]
[1727046527195,0.38737,2581.6,2581.1,0.38743]
[1727046527397,0.38741,2581.3,2581.0,3.2078]
[1727046527599,0.38741,2581.4,2581.0,3.59525]
[1727046527796,0.84529,2581.5,2581.1,0.38743]
[1727046528198,5.03636433,2581.8,2581.0,3.2078]
[1727046528501,3.6489,2581.8,2581.0,3.2078]
[1727046528697,4.03623,2581.8,2581.4,0.38739]
[1727046529099,3.6489,2581.8,2581.4,0.38739]
[1727046529305,3.2078,2581.8,2581.3,3.2078]
[1727046529504,3.2078,2581.8,2581.5,0.38738]
[1727046529896,3.59514,2581.8,2581.4,0.87049]
[1727046530301,0.38737,2581.6,2581.3,3.2078]
[1727046530599,4.20792433,2581.8,2581.0,3.6875]
[1727046530804,0.38736,2581.7,2581.2,0.38742]
[1727046530995,0.38737,2581.6,2581.2,0.38742]
[1727046531194,0.96829,2582.0,2581.7,0.38735]
[1727046531195,1.00012433,2582.0,2581.7,0.38735]
[1727046531395,2.45207632,2582.2,2581.7,3.2078]
[1727046531396,0.82408,2582.2,2581.7,3.2078]
[1727046531604,0.4368,2582.2,2581.9,0.38732]
[1727046532299,0.4368,2582.2,2581.8,0.38732]
[1727046532300,0.82407,2582.2,2581.8,0.38732]
[1727046532498,1.96219071,2582.4,2582.0,3.2078]
[1727046532499,0.4458,2582.4,2582.0,3.2078]
[1727046532697,0.4458,2582.4,2582.1,0.38729]
[1727046533099,1.00012433,2582.6,2582.0,3.2078]
[1727046533307,1.38733433,2582.7,2582.3,0.38725]
[1727046533601,1.38733433,2582.7,2582.0,3.2078]
[1727046533602,1.00012433,2582.7,2582.0,3.2078]
[1727046534102,1.00012433,2582.7,2582.3,0.38725]
[1727046534400,0.38721,2582.6,2582.2,0.38727]
[1727046534604,1.00012433,2582.7,2582.3,0.38726]
[1727046534605,1.38733433,2582.7,2582.3,0.38726]
[1727046534998,1.38733433,2582.7,2582.2,0.38726]
[1727046535393,1.00012433,2582.7,2582.3,0.38725]
[1727046535596,1.00012433,2582.7,2582.2,0.38726]
[1727046535796,0.38721,2582.6,2582.2,0.38726]
[1727046536803,1.00012433,2582.7,2582.6,0.38721]
[1727046537000,0.4412,2582.8,2582.0,3.2078]
[1727046537200,1.47262433,2582.9,2582.1,8.93111266]
[1727046537507,1.85979433,2582.9,2582.5,0.38722]
[1727046537708,1.00012433,2582.8,2582.5,0.38722]
[1727046538416,1.00012433,2582.8,2582.4,0.86524]
[1727046538417,1.38731433,2582.8,2582.4,0.86524]
[1727046538612,1.00012433,2582.8,2582.5,0.38722]
[1727046539508,1.00012433,2582.8,2582.7,0.3872]
[1727046539713,1.48802433,2583.0,2582.7,0.3872]
[1727046540009,1.87517433,2583.0,2582.7,0.3872]
[1727046540413,1.48802433,2583.0,2582.7,0.3872]
[1727046540605,1.87517433,2583.0,2582.4,0.478]
[1727046540800,1.48802433,2583.0,2582.7,0.38719]
[1727046541104,1.48802433,2583.0,2582.4,0.478]
[1727046541105,1.87517433,2583.0,2582.4,0.478]
[1727046541309,0.38718,2582.9,2582.4,0.478]
[1727046542003,0.38718,2582.9,2582.5,0.38721]
[1727046542210,0.38719,2582.8,2582.4,0.478]
[1727046542415,1.00012433,2582.9,2582.4,0.478]
[1727046542616,1.00012433,2582.9,2582.6,0.3872]
[1727046542810,1.87518433,2583.0,2582.7,0.3872]
[1727046543004,1.87518433,2583.0,2582.7,0.38719]
[1727046543005,1.48802433,2583.0,2582.7,0.38719]
[1727046543317,1.00012433,2582.9,2582.7,0.38719]
[1727046543709,2.51651504,2583.0,2582.7,3.2078]
[1727046543909,1.00012433,2583.3,2582.8,0.96796]
[1727046544113,1.00012433,2583.5,2583.4,0.38709]
[1727046544416,1.97209071,2583.6,2583.3,0.3871]
[1727046544417,1.45582433,2583.6,2583.3,0.3871]
[1727046545003,0.38708,2583.5,2583.1,0.38714]
[1727046545207,0.38711,2583.3,2583.0,3.6662]
[1727046545713,0.3871,2583.4,2583.0,4.05335]
[1727046545934,0.38711,2583.3,2583.0,4.05334]
[1727046546110,0.38718,2582.9,2582.7,3.2078]
[1727046546309,0.38718,2582.8,2582.7,3.2078]
[1727046546614,0.38723,2582.5,2582.0,0.3873]
[1727046546813,1.39893796,2582.6,2582.1,0.38728]
[1727046547610,0.38727,2582.3,2581.9,3.2078]
[1727046547818,0.38725,2582.4,2581.9,0.38731]
[1727046548215,1.50151796,2582.5,2581.9,3.2078]
[1727046548615,0.87704,2582.5,2581.9,0.38732]
[1727046548815,1.88875796,2582.5,2582.0,0.38729]
[1727046549518,1.50151796,2582.5,2582.0,0.3873]
[1727046549718,1.50151796,2582.5,2582.1,0.38729]
[1727046549922,1.01171796,2582.6,2582.2,0.38727]
[1727046550110,0.38721,2582.6,2582.1,0.38728]
[1727046550306,1.46981796,2582.8,2582.2,3.2078]
[1727046550524,1.85700796,2582.8,2582.3,0.38725]
[1727046550710,1.85700796,2582.8,2582.2,3.59507]
[1727046550911,1.85700796,2582.8,2582.3,0.38725]
[1727046551119,0.4581,2582.8,2582.4,0.38724]
[1727046551820,0.4581,2582.8,2582.4,0.38723]
[1727046552118,0.4581,2582.8,2582.2,3.2078]
[1727046552119,0.4581,2582.8,2582.5,0.38723]
[1727046553009,1.50151796,2582.9,2582.5,3.2078]
[1727046553010,1.01171796,2582.9,2582.5,3.2078]
[1727046553212,2.01527632,2583.2,2582.7,0.3872]
[1727046553213,1.01171796,2583.2,2582.7,0.3872]
[1727046553411,1.01171796,2583.2,2582.6,0.4699]
[1727046553618,1.01171796,2583.2,2582.8,0.38718]
[1727046553821,1.01171796,2583.2,2582.6,0.4699]
[1727046554223,1.47231796,2583.3,2582.9,0.38716]
[1727046554417,1.85942796,2583.3,2582.8,0.38718]
[1727046554623,1.01171796,2583.2,2582.6,0.4699]
[1727046554821,1.47231796,2583.3,2583.0,0.38715]
[1727046555123,1.01171796,2583.2,2582.9,0.38716]
[1727046555314,1.85942796,2583.3,2582.8,3.59498]
[1727046555721,1.85942796,2583.3,2582.9,0.38717]
[1727046555929,1.85942796,2583.3,2582.6,0.4699]
[1727046556112,1.85942796,2583.3,2582.8,0.38717]
[1727046556311,1.85942796,2583.3,2582.6,0.4699]
[1727046556525,1.47231796,2583.3,2583.0,0.38714]
[1727046556727,1.47231796,2583.3,2583.1,0.38713]
[1727046557022,3.2078,2583.4,2582.9,8.1992935]
[1727046557528,0.38711,2583.3,2582.8,3.59497]
[1727046557728,0.38711,2583.3,2582.8,3.2078]
[1727046557729,0.38714,2583.1,2582.8,3.2078]
[1727046557930,0.38715,2583.1,2582.8,3.2078]
[1727046558223,0.38716,2583.0,2582.6,0.4699]
[1727046558819,0.38716,2583.0,2582.6,0.85711]
[1727046559020,0.38717,2582.9,2582.6,0.4699]
[1727046559820,0.38716,2583.0,2582.6,0.4699]
[1727046560728,0.38716,2583.0,2582.6,0.85711]
[1727046561630,0.38716,2583.0,2582.6,0.4699]
[1727046562333,0.38717,2582.9,2582.6,0.4699]
[1727046562519,0.38719,2582.8,2582.6,0.4699]
[1727046562829,0.38718,2582.9,2582.5,0.38722]
[1727046563220,0.38717,2582.9,2582.5,0.38722]
[1727046563418,0.96789,2583.0,2582.4,8.69549278]
[1727046563623,0.96789,2583.0,2582.2,3.2078]
[1727046563824,0.38719,2582.8,2582.2,3.2078]
[1727046564133,0.38719,2582.8,2582.5,0.38722]
[1727046565032,1.01171796,2583.1,2582.2,3.2078]
[1727046565229,1.01171796,2583.1,2582.5,3.2078]
[1727046565433,0.38716,2583.0,2582.7,0.38719]
[1727046565734,0.38716,2583.0,2582.6,0.38721]
[1727046566131,0.38716,2583.0,2582.2,4.17597]
[1727046566628,0.4835,2583.2,2582.8,3.2078]
[1727046566836,0.4835,2583.2,2582.9,0.38717]
[1727046567024,0.4835,2583.2,2582.8,3.2078]
[1727046567225,0.38714,2583.1,2582.8,3.2078]
[1727046567421,0.38715,2583.0,2582.7,0.38719]
[1727046567626,1.49521796,2583.2,2582.5,3.59502]
[1727046567835,0.38718,2582.9,2582.5,0.38722]
[1727046568029,0.38718,2582.9,2582.6,8.14550903]
[1727046568225,0.38716,2583.0,2582.6,8.53271903]
[1727046568425,0.38717,2582.9,2582.6,8.53271903]
[1727046569133,0.38716,2583.0,2582.6,8.53271903]
[1727046569623,0.38717,2582.9,2582.6,8.53271903]
[1727046570127,0.38717,2582.9,2582.6,8.14550903]
[1727046570435,0.38723,2582.5,2582.2,3.2078]
[1727046570635,0.38726,2582.4,2582.2,3.2078]
[1727046570829,0.86436,2582.4,2582.2,3.2078]
[1727046571128,0.86436,2582.4,2581.9,4.1629]
[1727046571331,0.4771,2582.4,2582.0,0.38729]
[1727046571533,0.4771,2582.4,2581.9,4.55021]
[1727046571832,0.4771,2582.4,2582.0,0.3873]
[1727046572240,0.4771,2582.4,2581.9,4.55021]
[1727046573733,0.4771,2582.4,2582.0,0.38729]
[1727046574134,0.4771,2582.4,2582.0,0.87899]
[1727046575035,0.4771,2582.4,2582.0,0.4917]
[1727046575036,0.86435,2582.4,2582.0,0.4917]
[1727046575231,1.87606796,2582.4,2582.0,0.4917]
[1727046575434,1.48881796,2582.4,2582.0,0.879]
[1727046575641,0.4771,2582.4,2582.0,0.879]
[1727046575830,1.48881796,2582.4,2582.0,0.879]
[1727046577332,1.01171796,2582.3,2582.0,0.879]
[1727046577730,1.01171796,2582.3,2581.6,3.2078]
[1727046577731,3.8728,2582.2,2581.6,3.2078]
[1727046577931,0.38734,2581.8,2581.6,3.2078]
[1727046578129,0.4784,2581.7,2581.6,3.2078]
[1727046578738,0.4784,2581.7,2581.4,0.38739]
[1727046578941,0.4784,2581.7,2581.5,0.38738]
[1727046579134,0.4784,2581.7,2581.4,0.38738]
[1727046579933,0.4784,2581.7,2581.3,0.4756]
[1727046580242,0.4784,2581.7,2581.4,0.38739]
[1727046580839,0.4784,2581.7,2581.3,0.4756]
[1727046581439,0.4784,2581.7,2581.4,0.38738]
[1727046581739,1.01171796,2581.9,2581.5,0.38737]
[1727046581940,1.01171796,2581.9,2581.4,0.38738]
[1727046582135,1.39903796,2581.9,2581.4,0.38738]
[1727046582535,1.39903796,2581.9,2581.3,0.863]
[1727046582835,1.39903796,2581.9,2581.4,0.38739]
[1727046583242,0.38732,2581.9,2581.4,0.38739]
[1727046583446,0.38732,2581.9,2581.3,0.863]
[1727046583447,0.38733,2581.8,2581.3,0.863]
[1727046584544,0.38735,2581.7,2581.3,0.4756]
[1727046585046,0.38734,2581.8,2581.3,0.86301]
[1727046585235,0.38735,2581.7,2581.3,0.86301]
[1727046585440,1.01171796,2581.9,2581.3,0.4756]
[1727046585745,2.32140796,2582.1,2581.5,3.2078]
[1727046586040,1.01171796,2582.2,2581.5,3.2078]
[1727046586245,1.01171796,2582.4,2581.9,0.38731]
[1727046586446,1.01171796,2582.4,2581.8,3.59512]
[1727046586447,0.38727,2582.3,2581.8,3.59512]
[1727046586641,0.38731,2582.0,2581.7,0.4916]
[1727046587144,0.38729,2582.2,2581.7,0.87894]
[1727046587337,0.38729,2582.2,2581.8,0.38733]
[1727046587533,0.38729,2582.1,2581.7,0.87894]
[1727046588040,0.38728,2582.2,2581.7,0.87894]
[1727046588237,0.38729,2582.1,2581.7,0.4916]
[1727046588432,2.12,2582.0,2581.6,0.38735]
[1727046588741,1.01171796,2582.3,2581.5,3.2078]
[1727046588742,3.51899796,2582.2,2581.5,3.2078]
[1727046589041,0.38729,2582.1,2581.5,3.2078]
[1727046589252,0.38729,2582.1,2581.7,0.38734]
[1727046590039,2.12,2582.0,2581.7,0.38734]
[1727046590548,0.38729,2582.1,2581.4,0.4473]
[1727046590549,0.38736,2581.7,2581.4,0.4473]
[1727046590737,0.96825,2582.1,2581.4,0.4473]
[1727046590738,2.50736,2581.6,2581.4,0.4473]
[1727046591148,2.12,2581.6,2581.4,0.4473]
[1727046591345,5.9936,2581.6,2581.2,3.2078]
[1727046591649,2.50737,2581.6,2581.2,3.2078]
[1727046591943,2.12,2581.6,2581.2,3.2078]
[1727046592340,2.12,2581.6,2581.2,3.59521]
[1727046592844,2.12,2581.6,2581.2,3.59522]
[1727046593143,1.39905796,2581.8,2581.2,3.59522]
[1727046593144,1.92671796,2581.9,2581.3,0.3874]
[1727046593335,1.92671796,2581.9,2581.2,3.2078]
[1727046593336,0.4684,2581.9,2581.2,3.2078]
[1727046593535,3.13171796,2582.2,2581.7,0.38734]
[1727046596350,0.4605,2582.3,2581.9,0.38732]
[1727046596649,0.4605,2582.3,2581.8,3.2078]
[1727046596950,0.4605,2582.3,2581.8,3.5951]
[1727046597138,1.51757694,2582.6,2582.1,3.2078]
[1727046597139,1.01171796,2582.6,2582.1,3.2078]
[1727046597344,1.39890796,2582.6,2582.1,3.2078]
[1727046597741,1.39890796,2582.6,2582.1,3.6493]
[1727046600248,1.39890796,2582.6,2582.1,4.03655]
[1727046600543,0.3872,2582.5,2582.1,3.6493]
[1727046600847,1.39890796,2582.6,2582.1,4.03655]
[1727046602246,1.01171796,2582.6,2582.1,3.6493]
[1727046602447,2.01527632,2582.9,2582.8,0.38715]
[1727046602448,2.5292949,2582.9,2582.8,0.38715]
[1727046602648,2.01527632,2583.2,2582.8,0.38715]
[1727046602649,1.01171796,2583.2,2582.8,3.2078]
[1727046602947,1.01171796,2583.2,2582.2,17.86648924]
[1727046602948,3.0561,2583.4,2583.0,3.59491]
[1727046603145,3.0561,2583.4,2582.9,0.4328]
[1727046603146,3.0561,2583.4,2583.2,0.38708]
[1727046603343,1.01171796,2583.5,2583.4,0.38706]
[1727046603549,1.01171796,2583.5,2583.3,3.2078]
[1727046603550,1.01171796,2583.6,2583.5,0.38705]
[1727046603747,1.01171796,2583.7,2583.6,0.38703]
[1727046603949,1.46781796,2583.8,2583.5,0.38704]
[1727046604144,0.4561,2583.8,2583.5,0.38704]
[1727046604448,0.4561,2583.8,2583.6,3.59482]
[1727046604639,3.61171796,2583.9,2583.7,0.38701]
[1727046605049,2.6,2583.9,2583.7,3.59481]
[1727046605249,1.50291796,2584.1,2583.9,0.38698]
[1727046605548,0.4912,2584.1,2584.0,0.38697]
[1727046605753,2.6,2584.2,2584.0,0.38697]
[1727046605959,2.6,2584.2,2583.9,0.47]
[1727046607746,0.4912,2584.5,2584.0,0.38696]
[1727046607747,3.0912,2584.5,2584.0,0.38696]
[1727046608353,3.0912,2584.5,2584.1,3.2078]
[1727046610847,3.0912,2584.5,2584.1,3.59475]
[1727046611148,0.86666,2584.8,2584.2,0.38694]
[1727046611343,0.4798,2584.8,2584.4,0.38691]
[1727046611547,3.0714,2584.9,2584.6,0.38688]
[1727046611548,0.4714,2584.9,2584.6,0.38688]
[1727046611749,0.4714,2584.9,2584.7,0.4788]
[1727046611951,0.4714,2584.9,2584.4,3.2078]
[1727046611952,0.38689,2584.6,2584.4,3.2078]
[1727046612156,2.9869,2584.5,2584.4,3.2078]
[1727046612359,3.4665,2584.5,2584.4,3.2078]
[1727046612548,3.4665,2584.5,2584.0,0.4788]
[1727046612549,13.3361,2584.5,2584.0,3.2078]
[1727046612750,2.6,2584.1,2584.0,3.2078]
[1727046613153,2.6,2584.4,2584.0,3.2078]
[1727046613349,0.4498,2584.2,2584.0,3.2078]
[1727046613650,0.83675,2584.2,2584.0,3.2078]
[1727046614252,0.4498,2584.2,2584.0,3.2078]
[1727046614452,0.4498,2584.2,2583.6,3.59482]
[1727046614754,0.38698,2584.0,2583.6,3.2078]
[1727046615552,0.4498,2584.2,2583.6,3.2078]
[1727046615754,0.4498,2584.2,2583.9,0.38697]
[1727046615954,0.4498,2584.2,2584.0,0.437]
[1727046616152,0.4358,2584.7,2584.2,0.38694]
[1727046616353,0.4358,2584.7,2584.1,0.86075]
[1727046616753,3.0358,2584.7,2584.2,0.38694]
[1727046617354,0.4358,2584.7,2584.3,3.2078]
[1727046617548,0.38689,2584.6,2584.1,0.4738]
[1727046617756,0.38689,2584.6,2584.0,4.03177]
[1727046617757,0.3869,2584.5,2584.0,3.6448]
[1727046618553,3.0358,2584.7,2584.0,3.6448]
[1727046618554,0.38692,2584.4,2584.0,3.6448]
[1727046618745,0.38693,2584.3,2584.0,0.437]
[1727046618951,2.98693,2584.3,2584.0,0.437]
[1727046619147,0.38695,2584.2,2584.0,0.437]
[1727046619954,2.6,2584.3,2583.6,3.2078]
[1727046620258,0.83776,2584.1,2583.6,3.59483]
[1727046620457,0.38698,2584.0,2583.6,3.2078]
[1727046620765,0.38703,2583.6,2583.3,3.2078]
[1727046620965,0.38703,2583.6,2583.0,0.38712]
[1727046620966,2.6,2583.7,2583.0,3.2078]
[1727046621153,0.38704,2583.6,2583.0,3.59491]
[1727046621359,0.38704,2583.6,2583.1,0.38711]
[1727046621856,0.38704,2583.6,2583.0,3.59491]
[1727046622063,2.98703,2583.7,2583.0,3.2078]
[1727046622361,0.96744,2584.0,2583.3,3.2078]
[1727046622362,2.6,2584.0,2583.3,3.2078]
[1727046622656,0.4508,2584.1,2583.6,3.2078]
[1727046622857,0.4508,2584.1,2583.7,0.38701]
[1727046623454,0.4508,2584.1,2583.6,3.2078]
[1727046623961,2.6,2584.0,2583.6,3.2078]
[1727046624161,2.6,2583.7,2583.4,0.4702]
[1727046624361,0.38704,2583.6,2583.4,0.4702]
[1727046624558,2.6,2583.7,2583.4,0.4702]
[1727046625258,2.6,2583.7,2583.4,0.85726]
[1727046625457,0.4627,2583.8,2583.4,0.85725]
[1727046625658,3.0508,2584.1,2583.5,3.2078]
[1727046625858,3.2078,2584.6,2583.8,3.2078]
[1727046625859,0.4627,2584.4,2583.8,3.2078]
[1727046626062,3.0711,2584.6,2583.9,1.3525]
[1727046626266,3.0711,2584.6,2584.2,0.38694]
[1727046627160,3.0711,2584.6,2584.1,3.2078]
[1727046627467,0.3869,2584.5,2584.1,3.2078]
[1727046627966,3.45799,2584.6,2584.1,3.59475]
[1727046628165,3.0711,2584.6,2584.2,0.38694]
[1727046628367,3.0711,2584.6,2584.1,3.2078]
[1727046628368,3.45799,2584.6,2584.1,3.59475]
[1727046628761,0.3869,2584.5,2584.1,3.2078]
[1727046629069,3.0711,2584.6,2584.2,0.38694]
[1727046629770,0.4711,2584.6,2584.2,0.38694]
[1727046629962,0.85798,2584.6,2584.1,3.59475]
[1727046630165,2.6,2584.3,2583.9,0.4466]
[1727046630468,2.6,2584.0,2583.0,3.2078]
[1727046630662,2.98705,2583.6,2583.0,3.59491]
[1727046630973,3.5328,2583.9,2583.2,0.38709]
[1727046631165,3.5328,2583.9,2583.0,3.2078]
[1727046631166,0.38701,2583.8,2583.3,0.38708]
[1727046631464,3.5328,2583.9,2583.0,3.2078]
[1727046631658,0.38704,2583.6,2583.0,3.59491]
[1727046631858,0.38703,2583.7,2583.1,0.3871]
[1727046632461,0.38704,2583.6,2583.0,3.59491]
[1727046632968,3.5328,2583.9,2583.1,0.3871]
[1727046632969,0.38703,2583.7,2583.1,0.3871]
[1727046633368,0.38704,2583.6,2583.1,0.3871]
[1727046634361,0.38704,2583.6,2583.0,3.59491]
[1727046634672,2.6,2583.5,2583.0,3.2078]
[1727046634865,0.3871,2583.2,2583.0,3.2078]
[1727046635061,0.38713,2583.0,2582.7,3.2078]
[1727046635267,2.98714,2582.9,2582.7,3.2078]
[1727046635563,2.98714,2582.9,2582.3,0.38722]
[1727046635564,0.38718,2582.7,2582.3,3.2078]
[1727046635769,0.38719,2582.6,2582.3,3.2078]
[1727046635976,0.85325,2582.8,2582.3,3.2078]
[1727046637067,0.4661,2582.8,2582.3,3.2078]
[1727046637263,0.85325,2582.8,2582.3,3.2078]
[1727046637876,3.2078,2583.0,2582.4,0.3872]
[1727046638073,3.2078,2583.0,2582.6,3.2078]
[1727046638274,3.59493,2583.0,2582.6,3.2078]
[1727046638572,2.6,2582.9,2582.2,3.6591]
[1727046638773,0.38717,2582.7,2582.2,3.6591]
[1727046638980,0.38718,2582.6,2582.2,3.6591]
[1727046639171,0.4484,2582.9,2581.9,3.2078]
[1727046639172,2.6,2582.5,2581.9,3.2078]
[1727046639368,3.4576,2582.5,2581.9,3.2078]
[1727046639567,3.4576,2582.5,2581.9,3.59508]
[1727046639764,0.38722,2582.4,2581.9,3.2078]
[1727046640275,3.0704,2582.5,2582.0,0.38727]
[1727046640474,3.4576,2582.5,2581.9,3.59508]
[1727046640677,3.0704,2582.5,2581.9,3.59508]
[1727046640873,3.0704,2582.5,2582.0,0.38726]
[1727046642381,3.4576,2582.5,2581.9,3.59509]
[1727046642770,3.0704,2582.5,2581.9,3.2078]
[1727046643080,3.0704,2582.5,2582.0,0.38726]
[1727046643676,0.4484,2582.9,2582.2,3.2078]
[1727046643879,3.6689,2583.0,2582.3,1.3265]
[1727046644068,0.4611,2583.0,2582.8,3.59494]
[1727046644273,0.4611,2583.0,2582.3,10.26257693]
[1727046644274,0.4611,2583.0,2582.6,0.38717]
[1727046644571,0.4611,2583.0,2582.5,3.2078]
[1727046645175,0.84823,2583.0,2582.5,3.2078]
[1727046645870,0.38714,2582.9,2582.5,3.2078]
[1727046647174,0.38715,2582.8,2582.5,3.2078]
[1727046649377,0.38715,2582.8,2582.5,3.595]
[1727046649679,0.38715,2582.8,2582.5,3.2078]
[1727046650083,0.38715,2582.9,2582.5,3.595]
[1727046650487,0.38715,2582.8,2582.5,3.595]
[1727046652786,0.4611,2583.0,2581.9,6.8802]
[1727046652787,2.6,2582.6,2582.1,3.2078]
[1727046653085,0.38724,2582.2,2582.1,3.2078]
[1727046653386,0.38722,2582.4,2582.1,3.59505]
[1727046654179,0.38722,2582.4,2582.1,3.2078]
[1727046654981,0.38724,2582.2,2582.1,3.2078]
[1727046655281,0.38727,2582.1,2581.7,4.95151]
[1727046655480,0.38727,2582.0,2581.7,4.95151]
[1727046655680,0.38729,2581.9,2581.7,4.5642]
[1727046655888,0.38729,2581.9,2581.7,4.111]
[1727046656188,2.50728,2582.0,2581.7,3.2078]
[1727046657184,2.50728,2582.0,2581.7,3.59512]
[1727046658085,2.12,2582.0,2581.7,3.2078]
[1727046658385,1.3889,2582.3,2581.7,9.2006]
[1727046658386,0.38725,2582.2,2581.7,9.2006]
[1727046658579,0.38726,2582.1,2581.7,3.2078]
[1727046658777,0.38725,2582.2,2581.8,0.38729]
[1727046659181,2.5408,2582.3,2581.7,3.2078]
[1727046659182,2.92803,2582.3,2581.7,3.2078]
[1727046659382,2.50723,2582.3,2581.7,3.2078]
[1727046659884,2.50723,2582.3,2581.9,0.38728]
[1727046661291,0.38725,2582.2,2581.9,0.38728]
[1727046661486,2.50724,2582.3,2581.9,0.38728]
[1727046661683,2.12,2582.3,2582.0,0.38726]
[1727046662178,0.38715,2582.8,2582.1,4.84095]
[1727046662387,2.12,2582.9,2582.4,0.38721]
[1727046662587,0.38716,2582.8,2582.4,0.38721]
[1727046663496,2.12,2582.9,2582.3,3.2078]
[1727046664396,0.38719,2582.6,2582.3,3.2078]
[1727046664595,2.12,2582.4,2582.3,3.2078]
[1727046664899,0.3873,2581.9,2581.6,3.2078]
[1727046665097,2.12,2582.4,2581.6,3.2078]
[1727046665098,0.38732,2581.7,2581.6,3.2078]
[1727046665488,10.70922,2581.7,2581.6,3.2078]
[1727046666004,4.70922,2581.7,2581.6,3.2078]
[1727046666390,10.70922,2581.7,2581.6,3.2078]
[1727046666985,10.70922,2581.7,2581.4,0.96260627]
[1727046666986,0.38735,2581.5,2581.4,0.96260627]
[1727046667398,0.38734,2581.6,2581.4,0.96260627]
[1727046667592,0.38734,2581.6,2581.2,0.38739]
[1727046667895,0.38735,2581.5,2581.1,0.3874]
[1727046668698,0.38734,2581.6,2581.1,0.3874]
[1727046669088,0.38735,2581.5,2581.1,0.3874]
[1727046669288,0.38734,2581.6,2581.2,0.38739]
[1727046669485,1.26913,2581.7,2581.3,0.38737]
[1727046669691,1.26913,2581.7,2581.2,0.38738]
[1727046669899,0.38734,2581.6,2581.2,0.38738]
[1727046670291,1.26912,2581.7,2580.8,4.24481104]
[1727046670500,0.8818,2581.7,2581.1,0.3874]
[1727046670701,0.38733,2581.6,2581.1,0.3874]
[1727046671398,0.4483,2581.7,2581.1,3.2078]
[1727046671999,5.8078,2582.1,2581.4,3.2078]
[1727046672306,0.3873,2581.9,2581.4,3.59516]
[1727046672503,0.3873,2581.8,2581.4,3.2078]
[1727046672706,0.4255,2582.0,2581.0,3.2078]
[1727046672707,2.6,2581.9,2581.0,3.2078]
[1727046672904,0.38733,2581.7,2581.2,0.38739]
[1727046673411,0.38731,2581.8,2581.0,11.24689368]
[1727046673610,0.38731,2581.8,2581.3,3.2078]
[1727046673910,0.38732,2581.7,2581.0,3.2078]
[1727046674505,2.6,2581.9,2581.2,0.38739]
[1727046674704,0.38733,2581.7,2581.2,0.38739]
[1727046675215,2.6,2581.9,2581.0,11.54108632]
[1727046675216,0.38731,2581.8,2581.0,11.54108632]
[1727046675507,0.38731,2581.8,2581.3,3.2078]
[1727046675900,2.9873,2581.9,2581.4,0.38736]
[1727046676106,0.3873,2581.8,2581.4,0.38736]
[1727046677801,2.6,2581.9,2581.4,0.38736]
[1727046678003,0.38731,2581.8,2581.4,0.38735]
[1727046678707,2.9873,2581.9,2581.5,0.38734]
[1727046679013,0.3873,2581.8,2581.4,0.38735]
[1727046679513,0.38732,2581.7,2581.3,3.59517]
[1727046679809,0.38735,2581.5,2581.0,3.2078]
[1727046680116,0.38736,2581.4,2581.1,0.3874]
[1727046681212,0.38736,2581.4,2581.0,0.38742]
[1727046681515,3.6089954,2581.8,2581.2,3.2078]
[1727046681708,0.38734,2581.6,2581.2,3.59518]
[1727046682015,2.6,2581.8,2581.3,0.38738]
[1727046682213,0.38734,2581.6,2581.2,3.59518]
[1727046682809,3.6089954,2581.9,2581.2,3.59519]
[1727046682810,0.38735,2581.5,2581.2,3.59519]
[1727046683010,3.6089954,2581.9,2581.2,3.2078]
[1727046683214,0.38729,2581.9,2581.6,0.38733]
[1727046683512,0.38729,2581.9,2581.5,3.2078]
[1727046683715,0.38729,2581.9,2581.5,3.59513]
[1727046683917,0.81278,2582.0,2581.6,0.38733]
[1727046684118,0.38729,2581.9,2581.5,3.2078]
[1727046684415,0.3873,2581.8,2581.5,3.2078]
[1727046684610,2.6,2581.9,2581.5,3.2078]
[1727046684815,0.38731,2581.8,2581.5,3.2078]
[1727046685116,0.38731,2581.8,2581.5,3.59515]
[1727046685316,2.9873,2581.9,2581.6,0.38733]
[1727046686117,2.6,2581.9,2581.7,0.38732]
[1727046686308,0.81278,2582.0,2581.7,0.38732]
[1727046686508,0.4255,2582.0,2581.8,0.3873]
[1727046686816,4.0531954,2582.2,2581.9,0.38728]
[1727046686817,0.83145,2582.2,2581.9,0.38728]
[1727046687016,0.38726,2582.1,2581.8,3.59509]
[1727046687620,0.4442,2582.2,2581.7,1.2523]
[1727046687917,0.4442,2582.2,2581.6,0.4299]
[1727046688115,0.4442,2582.2,2581.4,3.2078]
[1727046688116,0.38735,2581.5,2581.4,3.2078]
[1727046688614,2.50735,2581.5,2581.4,3.2078]
[1727046689210,0.38732,2581.7,2581.5,0.38735]
[1727046689611,0.38732,2581.7,2581.4,3.2078]
[1727046689612,0.38732,2581.7,2581.4,3.59515]
[1727046689811,2.12,2581.5,2581.4,3.2078]
[1727046690011,2.50735,2581.5,2581.4,3.2078]
[1727046690513,0.38735,2581.5,2581.4,3.2078]
[1727046691709,0.38735,2581.5,2580.9,3.2078]
[1727046691710,4.84198,2581.5,2580.9,3.2078]
[1727046691910,0.38742,2581.1,2580.8,0.8661]
[1727046692214,2.6,2581.3,2580.6,3.6306]